fUSD/lending_fUSD_20240412
["ID","MTS","AMOUNT","RATE_DAILY","PERIOD"]
[322306436,1712943077021,-500.0,0.00048767,31]
[322306437,1712943077032,-500.0,0.00048767,31]
[322306438,1712943077042,-500.0,0.00048767,31]
[322306439,1712943077051,-575.91,0.00048767,31]
[322306440,1712943077061,-664.52,0.00048767,31]
[322306441,1712943077070,-1185.31,0.00048767,31]
[322306442,1712943077080,-585.03,0.00048767,31]
[322306443,1712943077089,-690.39,0.00048767,31]
[322306444,1712943077099,-2922.2,0.00048767,31]
[322306445,1712943077108,-500.0,0.00048767,31]
[322306446,1712943077118,-500.0,0.00048767,31]
[322306447,1712943077127,-1072.1,0.00048767,31]
[322306448,1712943077136,-630.53,0.00048767,31]
[322306449,1712943077146,-500.0,0.00048767,31]
[322306450,1712943077155,-817.79,0.00048767,31]
[322306451,1712943077165,-500.0,0.00048767,31]
[322306452,1712943077174,-500.0,0.00048767,31]
[322306453,1712943077184,-11147.25,0.00048767,31]
[322306454,1712943077199,-2674.46,0.00048767,31]
[322306455,1712943077209,-1664.34,0.00048767,31]
[322306456,1712943077218,-500.0,0.00048767,31]
[322306457,1712943077228,-500.0,0.00048767,31]
[322306458,1712943077240,-500.0,0.00048767,31]
[322306459,1712943077250,-1490.98,0.00048767,31]
[322306460,1712943077259,-500.0,0.00048767,31]
[322306461,1712943077268,-532.17,0.00048767,31]
[322306462,1712943077278,-2085.05,0.00048767,31]
[322306463,1712943077287,-500.0,0.00048767,31]
[322306464,1712943077297,-500.0,0.00048767,31]
[322306465,1712943077306,-842.21,0.00048767,31]
[322306466,1712943077316,-500.0,0.00048767,31]
[322306467,1712943077326,-500.0,0.00048767,21]
[322306468,1712943077335,-707.65,0.00048767,31]
[322306469,1712943077345,-500.0,0.00048767,31]
[322306470,1712943077354,-500.0,0.00048767,31]
[322306471,1712943077364,-651.77,0.00048767,31]
[322306472,1712943077373,-754.73,0.00048767,31]
[322306473,1712943077383,-500.0,0.00048767,31]
[322306474,1712943077392,-930.65,0.00048767,31]
[322306475,1712943077401,-566.71,0.00048767,31]
[322306476,1712943077409,-500.0,0.00048767,31]
[322306477,1712943077418,-500.0,0.00048767,31]
[322306478,1712943077427,-500.0,0.00048767,31]
[322306479,1712943077436,-500.0,0.00048767,31]
[322306480,1712943077451,-500.0,0.00048767,31]
[322306481,1712943077463,-500.0,0.00048767,31]
[322306482,1712943077473,-406.20641661,0.00048767,31]
[322306483,1712943077483,-500.0,0.00048767,31]
[322306484,1712943077493,-500.0,0.00048767,7]
[322306485,1712943077505,-500.0,0.00048767,31]
[322306486,1712943077515,-500.0,0.00048767,31]
[322306487,1712943077524,-558.76,0.00048767,31]
[322306488,1712943077534,-2201.95,0.00048767,31]
[322306489,1712943077544,-500.0,0.00048767,31]
[322306490,1712943077554,-344.83939778,0.00048767,31]
[322306491,1712943077566,-500.0,0.00048767,31]
[322306492,1712943077577,-500.0,0.00048767,31]
[322306493,1712943077586,-1733.44,0.00048767,31]
[322306494,1712943077597,-500.0,0.00048767,31]
[322306495,1712943077607,-1511.61,0.00048767,31]
[322306496,1712943077616,-157.79,0.00048767,31]
[322306497,1712943077626,-500.0,0.00048767,31]
[322306498,1712943077636,-500.0,0.00048767,31]
[322306499,1712943077646,-500.0,0.00048767,31]
[322306500,1712943077656,-500.0,0.00048767,31]
[322306501,1712943077666,-1300.84,0.00048767,31]
[322306502,1712943077675,-472.61480548,0.00048767,31]
[322306503,1712943077685,-558.49,0.00048767,31]
[322306504,1712943077699,-500.0,0.00048767,31]
[322306505,1712943077709,-959.18,0.00048767,31]
[322306506,1712943077719,-921.12,0.00048767,31]
[322306507,1712943077732,-500.0,0.00048767,31]
[322306508,1712943077742,-500.0,0.00048767,31]
[322306509,1712943077752,-802.81,0.00048767,31]
[322306510,1712943077761,-2186.79,0.00048767,31]
[322306511,1712943077771,-500.0,0.00048767,31]
[322306512,1712943077782,-1066.91,0.00048767,31]
[322306513,1712943077791,-2219.87,0.00048767,31]
[322306514,1712943077802,-500.0,0.00048767,31]
[322306515,1712943077811,-500.0,0.00048767,31]
[322306516,1712943077821,-389.24331237,0.00048767,31]
[322306517,1712943077830,-593.49,0.00048767,31]
[322306518,1712943077840,-500.0,0.00048767,31]
[322306519,1712943077851,-6085.26,0.00048767,31]
[322306520,1712943077861,-500.0,0.00048767,31]
[322306521,1712943077872,-500.0,0.00048767,31]
[322306522,1712943077882,-532.52382139,0.00048767,31]
[322306523,1712943077891,-500.0,0.00048767,31]
[322306524,1712943077901,-500.0,0.00048767,31]
[322306525,1712943077911,-500.0,0.00048767,31]
[322306526,1712943077923,-500.0,0.00048767,31]
[322306527,1712943077933,-683.18,0.00048767,31]
[322306528,1712943077946,-1289.09,0.00048767,31]
[322306529,1712943077956,-500.0,0.00048767,31]
[322306530,1712943077966,-2118.68,0.00048767,31]
[322306531,1712943077978,-842.4,0.00048767,31]
[322306532,1712943077987,-542.64,0.00048767,31]
[322306533,1712943077996,-500.0,0.00048767,31]
[322306534,1712943078005,-674.83,0.00048767,31]
[322306535,1712943078015,-1964.08,0.00048767,31]
[322306536,1712943078024,-500.0,0.00048767,31]
[322306537,1712943078033,-500.0,0.00048767,31]
[322306538,1712943078043,-2132.39,0.00048767,31]
[322306539,1712943078052,-4500.0,0.000488,120]
[322306540,1712943078062,-155.98814491,0.00048847,30]
[322306541,1712943078072,-157.76084982,0.000489,120]
[322306542,1712943078082,-156.76364703,0.00048979,30]
[322306543,1712943078091,-323.04,0.00048986,15]
[322306544,1712943078101,-3880.50089951,0.00049,120]
[322306545,1712943078111,-1000.009999,0.00049,30]
[322306546,1712943078120,-15769.93119505,0.00049,2]
[322306547,1712943078143,-789.09377887,0.00049,2]
[322306548,1712943078155,-4935.69323287,0.00049,2]
[322306549,1712943078164,-3971.91630741,0.00049,2]
[322306550,1712943078174,-563.74151688,0.00049,120]
[322306551,1712943078183,-1023.966369,0.00049,30]
[322306552,1712943078197,-600.0,0.00049,50]
[322306553,1712943078207,-150.0,0.00049,9]
[322306554,1712943078217,-136.72762512,0.00049041,31]
[322306555,1712943078275,-393.10151959,0.00020999,2]
[322306556,1712943078285,-363.27237488,0.00049041,31]
[322306557,1712943078294,-500.0,0.00049041,31]
[322306558,1712943078303,-500.0,0.00049041,31]
[322306559,1712943078312,-500.0,0.00049041,31]
[322306560,1712943078321,-500.0,0.00049041,31]
[322306561,1712943078330,-500.0,0.00049041,31]
[322306562,1712943078339,-72.88289488,0.00049041,31]
[322306563,1712943078352,-429.11710512,0.00049041,31]
[322306564,1712943078361,-500.0,0.00049041,31]
[322306565,1712943078370,-1000.0,0.00049041,120]
[322306566,1712943078380,-414.65004322,0.00049041,31]
[322306567,1712943078389,-608.51,0.00049041,31]
[322306568,1712943078398,-536.64,0.00049041,31]
[322306569,1712943078408,-500.0,0.00049041,31]
[322306570,1712943078417,-500.0,0.00049041,31]
[322306571,1712943078427,-500.0,0.00049041,31]
[322306572,1712943078436,-464.98727452,0.00049041,31]
[322306573,1712943078452,-500.0,0.00049041,31]
[322306574,1712943078462,-500.0,0.00049041,31]
[322306575,1712943078474,-500.0,0.00049041,31]
[322306576,1712943078483,-195.16314754,0.00049041,31]
[322306577,1712943078493,-500.0,0.00049041,31]
[322306578,1712943078502,-500.0,0.00049041,31]
[322306579,1712943078512,-350.12034343,0.00049041,31]
[322306580,1712943078522,-500.0,0.00049041,31]
[322306581,1712943078531,-533.02,0.00049041,2]
[322306582,1712943078540,-500.0,0.00049041,31]
[322306583,1712943078552,-500.0,0.00049041,31]
[322306584,1712943078563,-500.0,0.00049041,31]
[322306585,1712943078574,-500.0,0.00049041,31]
[322306586,1712943078583,-953.04,0.00049041,31]
[322306587,1712943078594,-500.0,0.00049041,31]
[322306588,1712943078604,-500.0,0.00049041,31]
[322306589,1712943078615,-500.0,0.00049041,31]
[322306590,1712943078626,-500.0,0.00049041,31]
[322306591,1712943078637,-500.0,0.00049041,31]
[322306592,1712943078647,-500.0,0.00049041,31]
[322306593,1712943078658,-500.0,0.00049041,31]
[322306594,1712943078668,-500.0,0.00049041,31]
[322306595,1712943078678,-500.0,0.00049041,31]
[322306596,1712943078687,-503.14,0.00049041,31]
[322306597,1712943078704,-302.90441447,0.00049041,31]
[322306598,1712943078713,-500.0,0.00049041,31]
[322306599,1712943078725,-500.0,0.00049041,31]
[322306600,1712943078735,-500.0,0.00049041,31]
[322306601,1712943078744,-500.0,0.00049041,31]
[322306602,1712943078753,-500.0,0.00049041,31]
[322306603,1712943078763,-500.0,0.00049041,31]
[322306604,1712943078772,-500.0,0.00049041,31]
[322306605,1712943078782,-500.0,0.00049041,31]
[322306606,1712943078791,-500.0,0.00049041,31]
[322306607,1712943078800,-547.94,0.00049041,31]
[322306608,1712943078810,-500.0,0.00049041,31]
[322306609,1712943078820,-500.0,0.00049041,31]
[322306610,1712943078830,-500.0,0.00049041,31]
[322306611,1712943078841,-500.0,0.00049041,2]
[322306612,1712943078853,-500.0,0.00049041,31]
[322306613,1712943078863,-500.0,0.00049041,31]
[322306614,1712943078873,-500.0,0.00049041,31]
[322306615,1712943078883,-500.0,0.00049041,31]
[322306616,1712943078893,-500.0,0.00049041,31]
[322306617,1712943078903,-500.0,0.00049041,31]
[322306618,1712943078913,-506.79,0.00049041,31]
[322306619,1712943078923,-500.0,0.00049041,31]
[322306620,1712943078933,-500.0,0.00049041,31]
[322306621,1712943078950,-298.17278938,0.00049041,31]
[322306622,1712943078960,-753.97,0.00049041,31]
[322306623,1712943078972,-500.0,0.00049041,31]
[322306624,1712943078982,-500.0,0.00049041,31]
[322306625,1712943078992,-1016.30121205,0.00049041,31]
[322306626,1712943079006,-100.01878795,0.00049041,31]
[322306627,1712943079016,-761.02,0.00049041,31]
[322306628,1712943079026,-187.01172638,0.00049041,31]
[322306629,1712943079038,-312.98827362,0.00049041,31]
[322306630,1712943079048,-1571.11,0.00049041,31]
[322306631,1712943079059,-525.84,0.00049041,31]
[322306632,1712943079068,-500.0,0.00049041,31]
[322306633,1712943079078,-771.53,0.00049041,31]
[322306634,1712943079087,-688.0,0.00049041,31]
[322306635,1712943079097,-500.0,0.00049041,31]
[322306636,1712943079107,-768.13,0.00049041,31]
[322306637,1712943079116,-3455.71203778,0.00049041,31]
[322306638,1712943079129,-995.18804028,0.00049041,31]
[322306639,1712943079140,-373.59992194,0.00049041,31]
[322306640,1712943079150,-5.69389831,0.00049041,31]
[322306641,1712943079161,-344.04171,0.00049041,31]
[322306642,1712943079173,-150.26439169,0.00049041,31]
[322306643,1712943079182,-1199.86,0.00049041,31]
[322306644,1712943079195,-500.0,0.00049041,31]
[322306645,1712943079206,-500.0,0.00049041,31]
[322306646,1712943079215,-500.0,0.00049041,31]
[322306647,1712943079226,-575.91,0.00049041,31]
[322306648,1712943079236,-1185.31,0.00049041,31]
[322306649,1712943079377,-664.52,0.00049041,31]
[322306650,1712943079387,-585.03,0.00049041,31]
[322306651,1712943079397,-690.39,0.00049041,31]
[322306652,1712943079406,-2922.2,0.00049041,31]
[322306653,1712943079416,-500.0,0.00049041,31]
[322306654,1712943079426,-500.0,0.00049041,31]
[322306655,1712943079435,-1072.1,0.00049041,31]
[322306656,1712943079449,-630.53,0.00049041,31]
[322306657,1712943079458,-500.0,0.00049041,31]
[322306658,1712943079468,-817.79,0.00049041,31]
[322306659,1712943079477,-500.0,0.00049041,31]
[322306660,1712943079489,-500.0,0.00049041,31]
[322306661,1712943079498,-2434.11410832,0.00049041,31]
[322306662,1712943079513,-4703.89920003,0.00049041,31]
[322306663,1712943079525,-608.54,0.00049041,31]
[322306664,1712943079537,-1455.0,0.00049041,31]
[322306665,1712943079687,-524.32057752,0.00049041,31]
[322306666,1712943079856,-240.80539859,0.00020811,2]
[322306667,1712943079866,-215.758863,0.00028219,14]
[322306668,1712943079877,-181.08879426,0.00036437,2]
[322306669,1712943079887,-607.0,0.00037121,2]
[322306670,1712943079897,-500.0,0.00046575,31]
[322306671,1712943079907,-503.79189831,0.00046575,31]
[322306672,1712943079917,-1421.37611413,0.00049041,31]
[322306673,1712943079927,-2674.46,0.00049041,31]
[322306674,1712943079937,-1664.34,0.00049041,31]
[322306675,1712943079951,-500.0,0.00049041,31]
[322306676,1712943079960,-500.0,0.00049041,31]
[322306677,1712943079970,-1490.98,0.00049041,31]
[322306678,1712943079978,-214.34613188,0.00049041,31]
[322306679,1712943079992,-6.48230598,0.00049041,31]
[322306680,1712943080001,-500.0,0.00049041,31]
[322306681,1712943080011,-532.17,0.00049041,31]
[322306682,1712943080020,-1893.52103518,0.00049041,31]
[322306683,1712943080157,-191.52896482,0.00049041,31]
[322306684,1712943080167,-500.0,0.00049041,31]
[322306685,1712943080177,-500.0,0.00049041,31]
[322306686,1712943080187,-842.21,0.00049041,31]
[322306687,1712943080203,-500.0,0.00049041,31]
[322306688,1712943080214,-707.65,0.00049041,31]
[322306689,1712943080225,-500.0,0.00049041,21]
[322306690,1712943080237,-500.0,0.00049041,31]
[322306691,1712943080247,-500.0,0.00049041,31]
[322306692,1712943080256,-651.77,0.00049041,31]
[322306693,1712943080266,-754.73,0.00049041,31]
[322306694,1712943080276,-500.0,0.00049041,31]
[322306695,1712943080285,-930.65,0.00049041,31]
[322306696,1712943080295,-566.71,0.00049041,31]
[322306697,1712943080307,-500.0,0.00049041,31]
[322306698,1712943080317,-500.0,0.00049041,31]
[322306699,1712943080327,-500.0,0.00049041,31]
[322306700,1712943080338,-500.0,0.00049041,31]
[322306701,1712943080348,-459.28509658,0.00049041,31]
[322306702,1712943080358,-500.0,0.00049041,31]
[322306703,1712943080368,-500.0,0.00049041,31]
[322306704,1712943080378,-229.17755882,0.00049041,7]
[322306705,1712943080388,-500.0,0.00049041,31]
[322306706,1712943080398,-500.0,0.00049041,31]
[322306707,1712943080407,-558.76,0.00049041,31]
[322306708,1712943080418,-2201.95,0.00049041,31]
[322306709,1712943080428,-500.0,0.00049041,31]
[322306710,1712943080437,-500.0,0.00049041,31]
[322306711,1712943080453,-429.35412327,0.00049041,31]
[322306712,1712943080463,-1733.44,0.00049041,31]
[322306713,1712943080472,-1511.61,0.00049041,31]
[322306714,1712943080483,-500.0,0.00049041,31]
[322306715,1712943080494,-500.0,0.00049041,31]
[322306716,1712943080506,-500.0,0.00049041,31]
[322306717,1712943080515,-500.0,0.00049041,31]
[322306718,1712943080525,-1300.84,0.00049041,31]
[322306719,1712943080534,-500.0,0.00049041,31]
[322306720,1712943080544,-558.49,0.00049041,31]
[322306721,1712943080557,-500.0,0.00049041,31]
[322306722,1712943080567,-959.18,0.00049041,31]
[322306723,1712943080578,-921.12,0.00049041,31]
[322306724,1712943080589,-500.0,0.00049041,31]
[322306725,1712943080600,-500.0,0.00049041,31]
[322306726,1712943080610,-802.81,0.00049041,31]
[322306727,1712943080620,-500.0,0.00049041,31]
[322306728,1712943080629,-2186.79,0.00049041,31]
[322306729,1712943080640,-187.75859708,0.00049041,31]
[322306730,1712943080653,-879.15140292,0.00049041,31]
[322306731,1712943080662,-1408.94814769,0.00049041,31]
[322306732,1712943081229,-155.0,0.00020998,2]
[322306733,1712943081242,-550.05913405,0.00020998,2]
[322306734,1712943081251,-281.19687612,0.00020998,2]
[322306735,1712943081261,-2721.96756764,0.00021999,2]
[322306736,1712943081271,-3224.27642219,0.00023452,2]
[322306737,1712943081283,-2967.47229001,0.00023452,2]
[322306738,1712943081296,-7781.031,0.00023452,2]
[322306739,1712943081348,-1872.822037,0.00023452,2]
[322306740,1712943081357,-151.68,0.00029,2]
[322306741,1712943081367,-151.68,0.00029,2]
[322306742,1712943081376,-151.68,0.00029,2]
[322306743,1712943081385,-151.68,0.00029,2]
[322306744,1712943081395,-151.68,0.00029,2]
[322306745,1712943081405,-151.68,0.00029,2]
[322306746,1712943081415,-151.68,0.00029,2]
[322306747,1712943081425,-151.68,0.00029,2]
[322306748,1712943081435,-151.68,0.00029,2]
[322306749,1712943081449,-151.68,0.00029,2]
[322306750,1712943081458,-42.9147886,0.00029,2]
[322306751,1712943081471,-108.7652114,0.00029,2]
[322306752,1712943081483,-151.68,0.00029,2]
[322306753,1712943081492,-151.68,0.00029,2]
[322306754,1712943081503,-151.68,0.00029,2]
[322306755,1712943081514,-286.448,0.00034555,2]
[322306756,1712943081523,-357.42244345,0.000368,2]
[322306757,1712943081536,-2639.98816648,0.000368,2]
[322306758,1712943081549,-33995.58939007,0.000368,2]
[322306759,1712943081562,-17645.0,0.000378,3]
[322306760,1712943081573,-17645.0,0.000388,5]
[322306761,1712943081583,-2141.44,0.00043137,2]
[322306762,1712943081593,-1093.3234443,0.00045644,10]
[322306763,1712943081603,-500.0,0.00046575,31]
[322306764,1712943081612,-500.0,0.00046575,31]
[322306765,1712943081622,-500.0,0.00046575,31]
[322306766,1712943081631,-575.21,0.00046575,31]
[322306767,1712943081642,-500.0,0.00046575,31]
[322306768,1712943081652,-500.0,0.00046849,31]
[322306769,1712943081661,-500.0,0.00046849,31]
[322306770,1712943081671,-445.95,0.00046849,31]
[322306771,1712943081681,-500.0,0.00047123,31]
[322306772,1712943081693,-500.0,0.00047123,31]
[322306773,1712943081704,-500.0,0.00047397,31]
[322306774,1712943081716,-500.0,0.00047397,31]
[322306775,1712943081727,-500.0,0.00047671,31]
[322306776,1712943081737,-500.0,0.00047671,31]
[322306777,1712943081746,-586.25776867,0.00047945,31]
[322306778,1712943081756,-500.0,0.00047945,31]
[322306779,1712943081766,-500.0,0.00048219,31]
[322306780,1712943081775,-810.92185231,0.00049041,31]
[322306781,1712943081785,-500.0,0.00049041,31]
[322306782,1712943081794,-500.0,0.00049041,31]
[322306783,1712943081803,-593.49,0.00049041,31]
[322306784,1712943081813,-500.0,0.00049041,31]
[322306785,1712943081824,-6085.26,0.00049041,31]
[322306786,1712943081834,-500.0,0.00049041,31]
[322306787,1712943081844,-500.0,0.00049041,31]
[322306788,1712943081854,-500.0,0.00049041,31]
[322306789,1712943081864,-500.0,0.00049041,31]
[322306790,1712943081874,-500.0,0.00049041,31]
[322306791,1712943081884,-500.0,0.00049041,31]
[322306792,1712943081893,-683.18,0.00049041,31]
[322306793,1712943081903,-1289.09,0.00049041,31]
[322306794,1712943081912,-500.0,0.00049041,31]
[322306795,1712943081922,-2118.68,0.00049041,31]
[322306796,1712943081931,-542.64,0.00049041,31]
[322306797,1712943081943,-842.4,0.00049041,31]
[322306798,1712943081955,-500.0,0.00049041,31]
[322306799,1712943081966,-674.83,0.00049041,31]
[322306800,1712943081975,-1964.08,0.00049041,31]
[322306801,1712943081985,-500.0,0.00049041,31]
[322306802,1712943081994,-500.0,0.00049041,31]
[322306803,1712943082008,-2132.39,0.00049041,31]
[322306804,1712943082018,-606.0,0.0004905,30]
[322306805,1712943082027,-322.0,0.0004905,30]
[322306806,1712943082037,-411.0,0.0004905,30]
[322306807,1712943082047,-204.8,0.00049205,120]
[322306808,1712943082057,-604.0,0.00049249,7]
[322306809,1712943082067,-500.0,0.00049315,120]
[322306810,1712943082077,-291.50691745,0.00049315,120]
[322306811,1712943082087,-500.0,0.00049315,120]
[322306812,1712943082097,-500.0,0.00049315,120]
[322306813,1712943082107,-502.0,0.00049315,120]
[322306814,1712943082117,-500.0,0.00049315,120]
[322306815,1712943082127,-1000.0,0.00049315,120]
[322306816,1712943082137,-608.51,0.00049315,120]
[322306817,1712943082147,-536.64,0.00049315,120]
[322306818,1712943082156,-666.0,0.00049315,2]
[322306819,1712943082166,-500.0,0.00049315,120]
[322306820,1712943082176,-500.0,0.00049315,120]
[322306821,1712943082185,-500.0,0.00049315,120]
[322306822,1712943082199,-500.0,0.00049315,120]
[322306823,1712943082208,-500.0,0.00049315,120]
[322306824,1712943082218,-500.0,0.00049315,120]
[322306825,1712943082228,-500.0,0.00049315,120]
[322306826,1712943082241,-500.0,0.00049315,120]
[322306827,1712943082251,-500.0,0.00049315,120]
[322306828,1712943082260,-533.02,0.00049315,2]
[322306829,1712943082269,-500.0,0.00049315,120]
[322306830,1712943082278,-500.0,0.00049315,120]
[322306831,1712943082288,-500.0,0.00049315,120]
[322306832,1712943082300,-500.0,0.00049315,120]
[322306833,1712943082309,-953.04,0.00049315,120]
[322306834,1712943082319,-500.0,0.00049315,120]
[322306835,1712943082329,-500.0,0.00049315,120]
[322306836,1712943082338,-500.0,0.00049315,120]
[322306837,1712943082348,-500.0,0.00049315,120]
[322306838,1712943082357,-500.0,0.00049315,120]
[322306839,1712943082367,-500.0,0.00049315,120]
[322306840,1712943082377,-500.0,0.00049315,120]
[322306841,1712943082387,-500.0,0.00049315,120]
[322306842,1712943082397,-500.0,0.00049315,120]
[322306843,1712943082407,-503.14,0.00049315,120]
[322306844,1712943082417,-500.0,0.00049315,120]
[322306845,1712943082427,-500.0,0.00049315,120]
[322306846,1712943082437,-500.0,0.00049315,120]
[322306847,1712943082446,-500.0,0.00049315,120]
[322306848,1712943082455,-500.0,0.00049315,120]
[322306849,1712943082465,-500.0,0.00049315,120]
[322306850,1712943082474,-500.0,0.00049315,120]
[322306851,1712943082483,-500.0,0.00049315,120]
[322306852,1712943082492,-344.92021719,0.00049315,120]
[322306853,1712943082503,-547.94,0.00049315,120]
[322306854,1712943082514,-495.86534136,0.00049315,120]
[322306855,1712943082523,-500.0,0.00049315,120]
[322306856,1712943082533,-500.0,0.00049315,120]
[322306857,1712943082542,-500.0,0.00049315,2]
[322306858,1712943082557,-500.0,0.00049315,120]
[322306859,1712943082567,-500.0,0.00049315,120]
[322306860,1712943082580,-500.0,0.00049315,120]
[322306861,1712943082590,-500.0,0.00049315,120]
[322306862,1712943082600,-500.0,0.00049315,120]
[322306863,1712943082610,-3000.0,0.00049315,120]
[322306864,1712943082620,-500.0,0.00049315,120]
[322306865,1712943082629,-500.0,0.00049315,120]
[322306866,1712943082639,-753.97,0.00049315,120]
[322306867,1712943082649,-500.0,0.00049315,120]
[322306868,1712943082659,-500.0,0.00049315,120]
[322306869,1712943082669,-1116.32,0.00049315,120]
[322306870,1712943082678,-761.02,0.00049315,120]
[322306871,1712943082688,-500.0,0.00049315,120]
[322306872,1712943082705,-1571.11,0.00049315,120]
[322306873,1712943082716,-525.84,0.00049315,120]
[322306874,1712943082728,-500.0,0.00049315,120]
[322306875,1712943082743,-688.0,0.00049315,120]
[322306876,1712943082753,-500.0,0.00049315,120]
[322306877,1712943082763,-768.13,0.00049315,120]
[322306878,1712943082773,-500.0,0.00049315,120]
[322306879,1712943082783,-1199.86,0.00049315,120]
[322306880,1712943082793,-500.0,0.00049315,120]
[322306881,1712943082803,-500.0,0.00049315,120]
[322306882,1712943082814,-500.0,0.00049315,120]
[322306883,1712943082824,-575.91,0.00049315,120]
[322306884,1712943082834,-1185.31,0.00049315,120]
[322306885,1712943082844,-664.52,0.00049315,120]
[322306886,1712943082854,-585.03,0.00049315,120]
[322306887,1712943082864,-690.39,0.00049315,120]
[322306888,1712943082876,-2922.2,0.00049315,120]
[322306889,1712943082886,-500.0,0.00049315,120]
[322306890,1712943082896,-500.0,0.00049315,120]
[322306891,1712943082906,-1072.1,0.00049315,120]
[322306892,1712943082915,-630.53,0.00049315,120]
[322306893,1712943082927,-500.0,0.00049315,120]
[322306894,1712943082937,-817.79,0.00049315,120]
[322306895,1712943082952,-500.0,0.00049315,120]
[322306896,1712943082961,-500.0,0.00049315,120]
[322306897,1712943082971,-11147.25,0.00049315,120]
[322306898,1712943082983,-2674.46,0.00049315,120]
[322306899,1712943082992,-1664.34,0.00049315,120]
[322306900,1712943083002,-500.0,0.00049315,120]
[322306901,1712943083012,-500.0,0.00049315,120]
[322306902,1712943083022,-1490.98,0.00049315,120]
[322306903,1712943083031,-500.0,0.00049315,120]
[322306904,1712943083042,-532.17,0.00049315,120]
[322306905,1712943083051,-2085.05,0.00049315,120]
[322306906,1712943083061,-500.0,0.00049315,120]
[322306907,1712943083071,-500.0,0.00049315,120]
[322306908,1712943083081,-842.21,0.00049315,120]
[322306909,1712943083092,-500.0,0.00049315,120]
[322306910,1712943083101,-707.65,0.00049315,120]
[322306911,1712943083110,-500.0,0.00049315,21]
[322306912,1712943083120,-500.0,0.00049315,120]
[322306913,1712943083129,-500.0,0.00049315,120]
[322306914,1712943083139,-651.77,0.00049315,120]
[322306915,1712943083149,-754.73,0.00049315,120]
[322306916,1712943083159,-500.0,0.00049315,120]
[322306917,1712943083168,-566.71,0.00049315,120]
[322306918,1712943083178,-500.0,0.00049315,120]
[322306919,1712943083188,-500.0,0.00049315,120]
[322306920,1712943083206,-500.0,0.00049315,120]
[322306921,1712943083444,-500.0,0.00049315,120]
[322306922,1712943083458,-500.0,0.00049315,120]
[322306923,1712943083471,-930.65,0.00049315,120]
[322306924,1712943083481,-500.0,0.00049315,120]
[322306925,1712943083491,-500.0,0.00049315,120]
[322306926,1712943083501,-500.0,0.00049315,120]
[322306927,1712943083513,-558.76,0.00049315,120]
[322306928,1712943083524,-2201.95,0.00049315,120]
[322306929,1712943083534,-156.40682177,0.00049315,120]
[322306930,1712943083544,-500.0,0.00049315,120]
[322306931,1712943083557,-1733.44,0.00049315,120]
[322306932,1712943083568,-500.0,0.00049315,120]
[322306933,1712943083578,-1511.61,0.00049315,120]
[322306934,1712943083588,-500.0,0.00049315,120]
[322306935,1712943083598,-500.0,0.00049315,120]